[Event "Elitserien 2019/2020, round 1-3"]
[Site "Uppsala University, Gamla torget, Uppsala, Sweden"]
[Date "2019.10.20"]
[Round "3.28"]
[White "Degerman, Lars"]
[Black "Haubro, Martin"]
[Result "0-1"]
[TimeControl "90 minutes for 40 moves + 30 minutes for the rest of the game + 30 seconds per move from move one."]
[WhiteTitle "IM"]
[BlackTitle "IM"]
[WhiteFideId "1700227"]
[BlackFideId "1414291"]
[WhiteElo "2446"]
[BlackElo "2343"]

1. c4 {[%clk 01:25:50]} {[%emt 00:05:09]} e6 {[%clk 01:30:54]} {[%emt
00:00:07]} 2. g3 {[%clk 01:25:35]} {[%emt 00:00:45]} d5 {[%clk 01:31:18]}
{[%emt 00:00:05]} 3. Bg2 {[%clk 01:25:09]} {[%emt 00:00:56]} dxc4 {[%clk
01:31:43]} {[%emt 00:00:05]} 4. Qa4+ {[%clk 01:25:04]} {[%emt 00:00:36]} Nd7
{[%clk 01:32:08]} {[%emt 00:00:06]} 5. Qxc4 {[%clk 01:25:08]} {[%emt 00:00:25]}
c5 {[%clk 01:32:32]} {[%emt 00:00:06]} 6. Nf3 {[%clk 01:22:42]} {[%emt
00:02:56]} Ngf6 {[%clk 01:32:00]} {[%emt 00:01:02]} 7. Qc2 {[%clk 01:22:30]}
{[%emt 00:00:41]} b6 {[%clk 01:29:03]} {[%emt 00:03:28]} 8. O-O {[%clk
01:18:01]} {[%emt 00:04:58]} Bb7 {[%clk 01:28:45]} {[%emt 00:00:49]} 9. Nc3
{[%clk 01:15:15]} {[%emt 00:03:15]} Be7 {[%clk 01:26:28]} {[%emt 00:02:47]} 10.
d4 {[%clk 01:08:20]} {[%emt 00:07:26]} O-O {[%clk 01:26:28]} {[%emt 00:00:30]}
11. e4 {[%clk 01:07:23]} {[%emt 00:01:27]} b5 {[%clk 01:05:57]} {[%emt
00:21:01]} 12. e5 {[%clk 00:50:34]} {[%emt 00:17:18]} Nd5 {[%clk 01:00:18]}
{[%emt 00:06:09]} 13. Nxb5 {[%clk 00:40:56]} {[%emt 00:10:09]} Qb6 {[%clk
00:57:30]} {[%emt 00:03:18]} 14. a4 {[%clk 00:36:34]} {[%emt 00:04:51]} Rac8
{[%clk 00:55:32]} {[%emt 00:02:29]} 15. dxc5 {[%clk 00:28:08]} {[%emt
00:08:56]} Rxc5 {[%clk 00:48:09]} {[%emt 00:07:53]} 16. Qe2 {[%clk 00:27:32]}
{[%emt 00:01:05]} Rfc8 {[%clk 00:47:52]} {[%emt 00:00:48]} 17. Be3 {[%clk
00:13:57]} {[%emt 00:14:04]} Nxe3 {[%clk 00:48:03]} {[%emt 00:00:20]} 18. Qxe3
{[%clk 00:14:23]} {[%emt 00:00:03]} Bxf3 {[%clk 00:45:41]} {[%emt 00:02:53]} 19.
Bxf3 {[%clk 00:14:36]} {[%emt 00:00:16]} Nxe5 {[%clk 00:45:52]} {[%emt
00:00:20]} 20. Be2 {[%clk 00:14:28]} {[%emt 00:00:37]} Bg5 {[%clk 00:29:45]}
{[%emt 00:16:37]} 21. Qb3 {[%clk 00:07:04]} {[%emt 00:07:53]} Rc2 {[%clk
00:30:08]} {[%emt 00:00:08]} 22. Rae1 {[%clk 00:04:14]} {[%emt 00:03:20]} Bd2
{[%clk 00:26:04]} {[%emt 00:04:36]} 23. Rd1 {[%clk 00:04:34]} {[%emt 00:00:09]}
a6 {[%clk 00:24:56]} {[%emt 00:01:38]} 24. a5 {[%clk 00:02:31]} {[%emt
00:02:33]} Bxa5 {[%clk 00:22:26]} {[%emt 00:03:00]} 25. Rd6 {[%clk 00:02:42]}
{[%emt 00:00:18]} Qb7 {[%clk 00:20:51]} {[%emt 00:02:06]} 26. Nd4 {[%clk
00:01:31]} {[%emt 00:01:40]} Qxb3 {[%clk 00:21:17]} {[%emt 00:00:05]} 27. Nxb3
{[%clk 00:01:52]} {[%emt 00:00:09]} Bb4 {[%clk 00:20:01]} {[%emt 00:01:46]} 28.
Rb6 {[%clk 00:02:00]} {[%emt 00:00:22]} Rxe2 {[%clk 00:20:27]} {[%emt
00:00:05]} 29. Rxb4 {[%clk 00:02:20]} {[%emt 00:00:10]} Rxb2 {[%clk 00:20:53]}
{[%emt 00:00:04]} 30. Rb7 {[%clk 00:00:55]} {[%emt 00:01:54]} h5 {[%clk
00:19:04]} {[%emt 00:02:19]} 31. Nc5 {[%clk 00:00:43]} {[%emt 00:00:43]} Rxb7
{[%clk 00:17:08]} {[%emt 00:02:27]} 32. Nxb7 {[%clk 00:01:11]} {[%emt
00:00:02]} Rc2 {[%clk 00:17:30]} {[%emt 00:00:07]} 33. h3 {[%clk 00:01:07]}
{[%emt 00:00:33]} Nd3 {[%clk 00:16:24]} {[%emt 00:01:37]} 34. f4 {[%clk
00:00:55]} {[%emt 00:00:41]} Kf8 {[%clk 00:12:04]} {[%emt 00:04:51]} 35. f5
{[%clk 00:00:54]} {[%emt 00:00:30]} Ke7 {[%clk 00:08:44]} {[%emt 00:03:49]} 36.
fxe6 {[%clk 00:01:05]} {[%emt 00:00:19]} fxe6 {[%clk 00:09:08]} {[%emt
00:00:06]} 37. Ra1 {[%clk 00:01:20]} {[%emt 00:00:15]} Rc1+ {[%clk 00:09:33]}
{[%emt 00:00:06]} 38. Rxc1 {[%clk 00:01:37]} {[%emt 00:00:13]} Nxc1 {[%clk
00:10:01]} {[%emt 00:00:02]} 39. Kf2 {[%clk 00:01:59]} {[%emt 00:00:08]} Nb3
{[%clk 00:10:25]} {[%emt 00:00:06]} 0-1

[Event "Elitserien 2019/2020, round 1-3"]
[Site "Uppsala University, Gamla torget, Uppsala, Sweden"]
[Date "2019.10.20"]
[Round "3.29"]
[White "Lindgren, Philip"]
[Black "Lundin, Jan"]
[Result "1-0"]
[TimeControl "90 minutes for 40 moves + 30 minutes for the rest of the game + 30 seconds per move from move one."]
[WhiteTitle "IM"]
[BlackTitle "FM"]
[WhiteFideId "1713230"]
[BlackFideId "1706896"]
[WhiteElo "2348"]
[BlackElo "2291"]

1. Nf3 {[%clk 01:30:12]} {[%emt 00:00:47]} f5 {[%clk 01:29:03]} {[%emt
00:01:58]} 2. g3 {[%clk 01:29:05]} {[%emt 00:01:36]} Nf6 {[%clk 01:28:49]}
{[%emt 00:00:44]} 3. Bg2 {[%clk 01:29:00]} {[%emt 00:00:34]} d6 {[%clk
01:26:38]} {[%emt 00:02:41]} 4. d4 {[%clk 01:26:49]} {[%emt 00:02:42]} g6
{[%clk 01:26:51]} {[%emt 00:00:17]} 5. O-O {[%clk 01:26:24]} {[%emt 00:00:54]}
Bg7 {[%clk 01:27:13]} {[%emt 00:00:08]} 6. b3 {[%clk 01:25:07]} {[%emt
00:01:47]} O-O {[%clk 01:27:33]} {[%emt 00:00:10]} 7. Bb2 {[%clk 01:24:59]}
{[%emt 00:00:38]} c6 {[%clk 01:27:39]} {[%emt 00:00:25]} 8. c4 {[%clk
01:22:34]} {[%emt 00:02:54]} Na6 {[%clk 01:27:38]} {[%emt 00:00:30]} 9. Nbd2
{[%clk 01:21:10]} {[%emt 00:01:55]} Nc7 {[%clk 01:27:32]} {[%emt 00:00:35]} 10.
Qc2 {[%clk 01:18:32]} {[%emt 00:03:09]} Nh5 {[%clk 01:27:42]} {[%emt 00:00:21]}
11. b4 {[%clk 01:12:16]} {[%emt 00:06:45]} Kh8 {[%clk 01:23:34]} {[%emt
00:04:38]} 12. e4 {[%clk 01:04:38]} {[%emt 00:08:08]} f4 {[%clk 01:22:05]}
{[%emt 00:01:59]} 13. d5 {[%clk 01:03:20]} {[%emt 00:01:48]} e5 {[%clk
01:04:55]} {[%emt 00:17:40]} 14. dxc6 {[%clk 01:02:14]} {[%emt 00:01:36]} g5
{[%clk 00:43:53]} {[%emt 00:21:32]} 15. c5 {[%clk 00:48:18]} {[%emt 00:14:26]}
g4 {[%clk 00:43:31]} {[%emt 00:00:53]} 16. cxd6 {[%clk 00:43:36]} {[%emt
00:05:12]} Qxd6 {[%clk 00:43:25]} {[%emt 00:00:36]} 17. Nxe5 {[%clk 00:38:14]}
{[%emt 00:05:52]} f3 {[%clk 00:42:54]} {[%emt 00:01:01]} 18. Bh1 {[%clk
00:36:54]} {[%emt 00:01:50]} Ne6 {[%clk 00:36:43]} {[%emt 00:06:42]} 19. Ndc4
{[%clk 00:29:01]} {[%emt 00:08:23]} Qc7 {[%clk 00:33:03]} {[%emt 00:04:08]} 20.
cxb7 {[%clk 00:23:09]} {[%emt 00:06:24]} Bxb7 {[%clk 00:20:25]} {[%emt
00:13:08]} 21. h3 {[%clk 00:18:35]} {[%emt 00:05:04]} Ng5 {[%clk 00:11:24]}
{[%emt 00:09:31]} 22. hxg4 {[%clk 00:15:33]} {[%emt 00:03:32]} Bxe4 {[%clk
00:02:26]} {[%emt 00:09:28]} 23. Qd2 {[%clk 00:13:23]} {[%emt 00:02:39]} Nxg3
{[%clk 00:02:35]} {[%emt 00:00:21]} 24. fxg3 {[%clk 00:10:42]} {[%emt
00:03:11]} f2+ {[%clk 00:02:56]} {[%emt 00:00:09]} 25. Kh2 {[%clk 00:10:56]}
{[%emt 00:00:16]} Bxh1 {[%clk 00:01:44]} {[%emt 00:01:43]} 26. Rxh1 {[%clk
00:06:38]} {[%emt 00:04:47]} Nf3+ {[%clk 00:00:39]} {[%emt 00:01:34]} 27. Nxf3
{[%clk 00:06:44]} {[%emt 00:00:25]} Rxf3 {[%clk 00:00:59]} {[%emt 00:00:11]} 28.
Bxg7+ {[%clk 00:03:56]} {[%emt 00:03:18]} Qxg7 {[%clk 00:01:13]} {[%emt
00:00:15]} 29. Qe2 {[%clk 00:01:09]} {[%emt 00:03:17]} Raf8 {[%clk 00:01:14]}
{[%emt 00:00:29]} 30. Raf1 {[%clk 00:00:35]} {[%emt 00:01:05]} Qxg4 {[%clk
00:00:39]} {[%emt 00:01:05]} 31. Qe5+ {[%clk 00:00:46]} {[%emt 00:00:19]} R8f6
{[%clk 00:30:30]} {[%emt 00:00:39]} 1-0

[Event "Elitserien 2019/2020, round 1-3"]
[Site "Uppsala University, Gamla torget, Uppsala, Sweden"]
[Date "2019.10.20"]
[Round "3.30"]
[White "Namini, Armin"]
[Black "Helgason, Reynir"]
[Result "0-1"]
[TimeControl "90 minutes for 40 moves + 30 minutes for the rest of the game + 30 seconds per move from move one."]
[BlackTitle "FM"]
[WhiteFideId "1706322"]
[BlackFideId "1700600"]
[WhiteElo "2251"]
[BlackElo "2253"]

1. c4 {[%clk 01:27:26]} {[%emt 00:03:33]} e6 {[%clk 01:30:33]} {[%emt
00:00:27]} 2. g3 {[%clk 01:27:29]} {[%emt 00:00:27]} d5 {[%clk 01:30:54]}
{[%emt 00:00:10]} 3. Bg2 {[%clk 01:27:52]} {[%emt 00:00:07]} Nf6 {[%clk
01:31:15]} {[%emt 00:00:09]} 4. Nf3 {[%clk 01:27:56]} {[%emt 00:00:26]} Be7
{[%clk 01:31:36]} {[%emt 00:00:09]} 5. O-O {[%clk 01:28:18]} {[%emt 00:00:08]}
O-O {[%clk 01:31:59]} {[%emt 00:00:08]} 6. d4 {[%clk 01:28:18]} {[%emt
00:00:30]} c6 {[%clk 01:30:07]} {[%emt 00:02:21]} 7. Nbd2 {[%clk 01:27:20]}
{[%emt 00:01:29]} b6 {[%clk 01:28:04]} {[%emt 00:02:32]} 8. Qc2 {[%clk
01:25:17]} {[%emt 00:02:33]} Bb7 {[%clk 01:27:50]} {[%emt 00:00:44]} 9. e4
{[%clk 01:24:23]} {[%emt 00:01:24]} Na6 {[%clk 01:27:27]} {[%emt 00:00:52]} 10.
b3 {[%clk 01:15:41]} {[%emt 00:09:13]} c5 {[%clk 01:01:54]} {[%emt 00:26:03]}
11. exd5 {[%clk 00:49:13]} {[%emt 00:26:59]} exd5 {[%clk 00:58:19]} {[%emt
00:04:04]} 12. dxc5 {[%clk 00:48:38]} {[%emt 00:01:05]} Nxc5 {[%clk 00:54:14]}
{[%emt 00:04:34]} 13. Bb2 {[%clk 00:39:20]} {[%emt 00:09:48]} dxc4 {[%clk
00:49:16]} {[%emt 00:05:29]} 14. Nxc4 {[%clk 00:39:12]} {[%emt 00:00:38]} Be4
{[%clk 00:44:39]} {[%emt 00:05:07]} 15. Qc3 {[%clk 00:35:13]} {[%emt 00:04:29]}
Nd3 {[%clk 00:36:05]} {[%emt 00:09:03]} 16. Ba3 {[%clk 00:21:21]} {[%emt
00:14:23]} Bxa3 {[%clk 00:26:45]} {[%emt 00:09:51]} 17. Nxa3 {[%clk 00:21:43]}
{[%emt 00:00:07]} Rc8 {[%clk 00:27:05]} {[%emt 00:00:10]} 18. Qd4 {[%clk
00:18:58]} {[%emt 00:03:15]} Qe7 {[%clk 00:24:53]} {[%emt 00:02:42]} 19. Nc4
{[%clk 00:16:43]} {[%emt 00:02:45]} Rfd8 {[%clk 00:25:16]} {[%emt 00:00:07]} 20.
Qe3 {[%clk 00:16:39]} {[%emt 00:00:34]} Nd5 {[%clk 00:24:13]} {[%emt 00:01:32]}
21. Qe2 {[%clk 00:11:12]} {[%emt 00:05:58]} N3f4 {[%clk 00:19:56]} {[%emt
00:04:46]} 22. gxf4 {[%clk 00:03:28]} {[%emt 00:08:15]} Nxf4 {[%clk 00:20:09]}
{[%emt 00:00:18]} 23. Qb2 {[%clk 00:03:36]} {[%emt 00:00:22]} Nxg2 {[%clk
00:20:01]} {[%emt 00:00:38]} 24. Qe5 {[%clk 00:03:45]} {[%emt 00:00:21]} Qxe5
{[%clk 00:17:41]} {[%emt 00:02:51]} 25. Nfxe5 {[%clk 00:03:46]} {[%emt
00:00:29]} Nf4 {[%clk 00:17:56]} {[%emt 00:00:14]} 26. Rfd1 {[%clk 00:02:57]}
{[%emt 00:01:19]} f6 {[%clk 00:11:14]} {[%emt 00:07:12]} 27. Nd6 {[%clk
00:01:55]} {[%emt 00:01:31]} Rxd6 {[%clk 00:11:13]} {[%emt 00:00:32]} 28. Rxd6
{[%clk 00:02:20]} {[%emt 00:00:05]} fxe5 {[%clk 00:11:37]} {[%emt 00:00:05]} 29.
Re1 {[%clk 00:01:40]} {[%emt 00:01:10]} Bf3 {[%clk 00:08:01]} {[%emt 00:04:06]}
30. h3 {[%clk 00:01:03]} {[%emt 00:01:07]} Nxh3+ {[%clk 00:07:04]} {[%emt
00:01:28]} 31. Kh2 {[%clk 00:01:30]} {[%emt 00:00:02]} Nxf2 {[%emt 00:00:13]}
32. Rd7 {[%clk 00:01:22]} {[%emt 00:00:37]} Ne4 {[%clk 00:05:53]} {[%emt
00:02:00]} 33. Rxa7 {[%clk 00:01:07]} {[%emt 00:00:45]} Rc2+ {[%clk 00:06:08]}
{[%emt 00:00:15]} 34. Kh3 {[%clk 00:01:31]} {[%emt 00:00:06]} g5 {[%clk
00:06:30]} {[%emt 00:00:08]} 0-1

[Event "Elitserien 2019/2020, round 1-3"]
[Site "Uppsala University, Gamla torget, Uppsala, Sweden"]
[Date "2019.10.20"]
[Round "3.31"]
[White "Kabadayi, Can"]
[Black "Hjelm, Niclas"]
[Result "1/2-1/2"]
[TimeControl "90 minutes for 40 moves + 30 minutes for the rest of the game + 30 seconds per move from move one."]
[BlackTitle "FM"]
[WhiteFideId "6306810"]
[BlackFideId "1700502"]
[WhiteElo "2208"]
[BlackElo "2309"]

1. d4 {[%clk 01:30:57]} {[%emt 00:00:03]} d5 {[%clk 01:29:58]} {[%emt
00:01:02]} 2. c4 {[%clk 01:31:18]} {[%emt 00:00:09]} c6 {[%clk 01:30:17]}
{[%emt 00:00:11]} 3. Nf3 {[%clk 01:31:35]} {[%emt 00:00:13]} Nf6 {[%clk
01:30:36]} {[%emt 00:00:11]} 4. Qc2 {[%clk 01:31:08]} {[%emt 00:00:58]} g6
{[%clk 01:30:05]} {[%emt 00:01:01]} 5. g3 {[%clk 01:30:55]} {[%emt 00:00:43]}
Bg7 {[%clk 01:29:46]} {[%emt 00:00:48]} 6. Bg2 {[%clk 01:31:17]} {[%emt
00:00:08]} O-O {[%clk 01:29:53]} {[%emt 00:00:23]} 7. O-O {[%clk 01:31:31]}
{[%emt 00:00:17]} Bf5 {[%clk 01:25:02]} {[%emt 00:05:21]} 8. Qb3 {[%clk
01:31:21]} {[%emt 00:00:40]} Qb6 {[%clk 01:21:44]} {[%emt 00:03:47]} 9. Nc3
{[%clk 01:30:15]} {[%emt 00:01:36]} Na6 {[%clk 01:07:24]} {[%emt 00:14:50]} 10.
Qxb6 {[%clk 01:19:14]} {[%emt 00:11:31]} axb6 {[%clk 01:07:44]} {[%emt
00:00:09]} 11. cxd5 {[%clk 01:19:24]} {[%emt 00:00:21]} Nxd5 {[%clk 01:02:40]}
{[%emt 00:05:34]} 12. Nxd5 {[%clk 01:18:02]} {[%emt 00:01:53]} cxd5 {[%clk
01:01:38]} {[%emt 00:01:31]} 13. Bd2 {[%clk 01:18:05]} {[%emt 00:00:27]} Nb8
{[%clk 00:54:43]} {[%emt 00:07:25]} 14. Rfc1 {[%clk 01:13:06]} {[%emt
00:05:29]} Nc6 {[%clk 00:51:22]} {[%emt 00:03:50]} 15. e3 {[%clk 01:12:50]}
{[%emt 00:00:47]} Be4 {[%clk 00:42:02]} {[%emt 00:09:50]} 16. Bc3 {[%clk
01:06:26]} {[%emt 00:06:54]} Rfc8 {[%clk 00:35:44]} {[%emt 00:06:47]} 17. Ne5
{[%clk 00:55:11]} {[%emt 00:11:46]} Bxg2 {[%clk 00:35:32]} {[%emt 00:00:42]} 18.
Kxg2 {[%clk 00:51:49]} {[%emt 00:03:52]} Nxe5 {[%clk 00:31:13]} {[%emt
00:04:49]} 19. dxe5 {[%clk 00:52:12]} {[%emt 00:00:07]} Rc4 {[%clk 00:30:39]}
{[%emt 00:01:03]} 20. Bd4 {[%clk 00:46:56]} {[%emt 00:05:47]} b5 {[%clk
00:14:23]} {[%emt 00:16:46]} 21. b3 {[%clk 00:42:02]} {[%emt 00:05:24]} Rc6
{[%clk 00:10:30]} {[%emt 00:04:22]} 22. Rxc6 {[%clk 00:39:40]} {[%emt
00:02:52]} bxc6 {[%clk 00:10:58]} {[%emt 00:00:02]} 23. a4 {[%clk 00:35:40]}
{[%emt 00:04:30]} bxa4 {[%clk 00:03:33]} {[%emt 00:07:55]} 24. bxa4 {[%clk
00:35:16]} {[%emt 00:00:55]} c5 {[%clk 00:01:42]} {[%emt 00:02:22]} 25. Bxc5
{[%clk 00:32:59]} {[%emt 00:02:47]} Bxe5 {[%clk 00:02:09]} {[%emt 00:00:02]} 26.
Ra2 {[%clk 00:32:28]} {[%emt 00:01:00]} Kf8 {[%clk 00:02:28]} {[%emt 00:00:12]}
27. a5 {[%clk 00:31:12]} {[%emt 00:01:47]} Ra6 {[%clk 00:02:56]} {[%emt
00:00:02]} 28. Bb6 {[%clk 00:27:49]} {[%emt 00:03:52]} Ke8 {[%clk 00:02:01]}
{[%emt 00:01:25]} 29. Rc2 {[%clk 00:26:47]} {[%emt 00:01:32]} Kd7 {[%clk
00:02:17]} {[%emt 00:00:14]} 30. f4 {[%clk 00:25:13]} {[%emt 00:02:05]} Bd6
{[%clk 00:02:38]} {[%emt 00:00:09]} 31. Kf3 {[%clk 00:25:22]} {[%emt 00:00:20]}
Bb4 {[%clk 00:02:33]} {[%emt 00:00:35]} 32. Ra2 {[%clk 00:21:23]} {[%emt
00:04:29]} Kc6 {[%clk 00:02:53]} {[%emt 00:00:10]} 33. e4 {[%clk 00:20:27]}
{[%emt 00:01:26]} dxe4+ {[%clk 00:03:15]} {[%emt 00:00:08]} 34. Kxe4 {[%clk
00:20:50]} {[%emt 00:00:07]} Kb5 {[%clk 00:03:25]} {[%emt 00:00:19]} 35. Kd5
{[%clk 00:17:29]} {[%emt 00:03:51]} Ra8 {[%clk 00:02:12]} {[%emt 00:01:44]} 36.
Rc2 {[%clk 00:14:55]} {[%emt 00:03:04]} h5 {[%clk 00:00:37]} {[%emt 00:02:05]}
37. h3 {[%clk 00:12:53]} {[%emt 00:02:34]} Ra6 {[%clk 00:01:02]} {[%emt
00:00:04]} 38. Rc7 {[%clk 00:07:06]} {[%emt 00:06:17]} Bxa5 {[%clk 00:00:43]}
{[%emt 00:00:49]} 39. Bxa5 {[%clk 00:06:31]} {[%emt 00:01:06]} Rd6 {[%clk
00:01:11]} {[%emt 00:00:02]} 40. Ke5 {[%clk 00:05:54]} {[%emt 00:01:05]} Re6
{[%clk 00:01:37]} {[%emt 00:00:04]} 41. Kd5 {[%clk 00:06:03]} {[%emt 00:00:22]}
Kxa5 {[%clk 00:01:30]} {[%emt 00:00:37]} 42. Kc5 {[%clk 00:01:38]} {[%emt
00:04:55]} Ka4 {[%clk 00:00:38]} {[%emt 00:01:23]} 43. Rb7 {[%clk 00:01:48]}
{[%emt 00:00:20]} Re3 {[%clk 00:13:34]} {[%emt 00:17:33]} 44. g4 {[%clk
00:24:57]} {[%emt 00:07:21]} Rxh3 {[%clk 00:12:31]} {[%emt 00:01:32]} 45. gxh5
{[%clk 00:24:47]} {[%emt 00:00:40]} Rxh5+ {[%clk 00:12:32]} {[%emt 00:00:30]}
46. Kc4 {[%clk 00:25:14]} {[%emt 00:00:03]} Ka5 {[%clk 00:10:23]} {[%emt
00:02:38]} 47. Rxe7 {[%clk 00:25:26]} {[%emt 00:00:19]} 1/2-1/2

[Event "Elitserien 2019/2020, round 1-3"]
[Site "Uppsala University, Gamla torget, Uppsala, Sweden"]
[Date "2019.10.20"]
[Round "3.32"]
[White "Jaderberg, Bjorn"]
[Black "Penalver, Osmani"]
[Result "1/2-1/2"]
[TimeControl "90 minutes for 40 moves + 30 minutes for the rest of the game + 30 seconds per move from move one."]
[WhiteFideId "1712403"]
[BlackFideId "1704516"]
[WhiteElo "2154"]
[BlackElo "2224"]

1. e4 {[%clk 01:30:56]} {[%emt 00:00:03]} c5 {[%clk 01:30:56]} {[%emt
00:00:05]} 2. Nf3 {[%clk 01:31:19]} {[%emt 00:00:08]} d6 {[%clk 01:31:14]}
{[%emt 00:00:11]} 3. Bb5+ {[%clk 01:31:42]} {[%emt 00:00:07]} Bd7 {[%clk
01:29:39]} {[%emt 00:02:06]} 4. Bxd7+ {[%clk 01:32:02]} {[%emt 00:00:10]} Qxd7
{[%clk 01:30:04]} {[%emt 00:00:05]} 5. c4 {[%clk 01:32:09]} {[%emt 00:00:23]}
g6 {[%clk 01:29:47]} {[%emt 00:00:47]} 6. d4 {[%clk 01:32:21]} {[%emt
00:00:18]} Bg7 {[%clk 01:30:09]} {[%emt 00:00:08]} 7. O-O {[%clk 01:29:54]}
{[%emt 00:02:57]} cxd4 {[%clk 01:29:52]} {[%emt 00:00:47]} 8. Nxd4 {[%clk
01:30:08]} {[%emt 00:00:16]} Nc6 {[%clk 01:30:07]} {[%emt 00:00:15]} 9. Be3
{[%clk 01:30:11]} {[%emt 00:00:27]} Nf6 {[%clk 01:30:00]} {[%emt 00:00:37]} 10.
f3 {[%clk 01:30:25]} {[%emt 00:00:16]} O-O {[%clk 01:29:31]} {[%emt 00:00:59]}
11. Nc3 {[%clk 01:29:24]} {[%emt 00:01:31]} e6 {[%clk 01:23:49]} {[%emt
00:06:12]} 12. Qd2 {[%clk 01:21:47]} {[%emt 00:08:07]} d5 {[%clk 01:17:25]}
{[%emt 00:06:54]} 13. Nxc6 {[%clk 01:21:40]} {[%emt 00:00:36]} bxc6 {[%clk
01:17:46]} {[%emt 00:00:09]} 14. Rad1 {[%clk 01:21:20]} {[%emt 00:00:50]} Qb7
{[%clk 01:16:29]} {[%emt 00:01:48]} 15. cxd5 {[%clk 01:20:20]} {[%emt
00:01:30]} cxd5 {[%clk 01:16:53]} {[%emt 00:00:06]} 16. exd5 {[%clk 01:19:44]}
{[%emt 00:01:06]} Nxd5 {[%clk 01:16:43]} {[%emt 00:00:40]} 17. Nxd5 {[%clk
01:20:04]} {[%emt 00:00:11]} exd5 {[%clk 01:16:29]} {[%emt 00:00:44]} 18. Qxd5
{[%clk 01:19:58]} {[%emt 00:00:36]} Qxb2 {[%clk 01:15:34]} {[%emt 00:01:26]} 19.
Rf2 {[%clk 01:17:49]} {[%emt 00:02:39]} Qe5 {[%clk 01:14:10]} {[%emt 00:01:54]}
20. Qxe5 {[%clk 01:15:31]} {[%emt 00:02:47]} 1/2-1/2